[Event "Titled Tuesday Blitz March 07 Early 2023"]
[White "polandchessplayer"]
[Black "Czopor, Maciej"]
[BlackFideId "21805431"]
[WhiteElo "2766"]
[BlackElo "2324"]
[Result "0-1"]
[Round "09"]
[TimeControl "180+2"]
[Date "2023.03.07"]
[WhiteClock "0:00:54"]
[BlackClock "0:00:15"]

1. Nf3 {[%clk 0:03:00]}  g6 {[%clk 0:02:58]} 2. g3 {[%clk 0:02:59]}  Bg7 {[%clk 0:02:59]} 3. Bg2 {[%clk 0:03:00]}  d6 {[%clk 0:02:59]} 4. O-O {[%clk 0:03:01]}  Nd7 {[%clk 0:03:00]} 5. c4 {[%clk 0:03:01]}  e5 {[%clk 0:03:00]} 6. Nc3 {[%clk 0:03:01]}  Ne7 {[%clk 0:03:01]} 7. d4 {[%clk 0:03:02]}  O-O {[%clk 0:02:59]} 8. Bg5 {[%clk 0:02:59]}  h6 {[%clk 0:02:57]} 9. Be3 {[%clk 0:02:58]}  Nf5 {[%clk 0:02:56]} 10. Qd2 {[%clk 0:02:50]}  Nxe3 {[%clk 0:02:49]} 11. fxe3 {[%clk 0:02:51]}  c6 {[%clk 0:02:38]} 12. Rad1 {[%clk 0:02:49]}  Qe7 {[%clk 0:02:35]} 13. Kh1 {[%clk 0:02:47]}  e4 {[%clk 0:02:12]} 14. Nh4 {[%clk 0:02:44]}  Nf6 {[%clk 0:02:12]} 15. d5 {[%clk 0:02:42]}  c5 {[%clk 0:02:06]} 16. Rf4 {[%clk 0:02:33]}  Ng4 {[%clk 0:01:47]} 17. h3 {[%clk 0:02:18]}  Ne5 {[%clk 0:01:31]} 18. b3 {[%clk 0:01:55]}  f5 {[%clk 0:01:30]} 19. Rdf1 {[%clk 0:01:47]}  Bd7 {[%clk 0:01:09]} 20. Kh2 {[%clk 0:01:39]}  Kh7 {[%clk 0:01:03]} 21. Nxe4 {[%clk 0:01:35]}  fxe4 {[%clk 0:01:01]} 22. Bxe4 {[%clk 0:01:35]}  Bf6 {[%clk 0:00:31]} 23. Nf3 {[%clk 0:01:29]}  Kg7 {[%clk 0:00:29]} 24. Qc2 {[%clk 0:01:21]}  g5 {[%clk 0:00:27]} 25. Nxe5 {[%clk 0:01:16]}  Bxe5 {[%clk 0:00:28]} 26. R4f2 {[%clk 0:01:08]}  Rxf2+ {[%clk 0:00:26]} 27. Rxf2 {[%clk 0:01:09]}  Rf8 {[%clk 0:00:26]} 28. Bf5 {[%clk 0:01:06]}  Bxf5 {[%clk 0:00:19]} 29. Rxf5 {[%clk 0:01:07]}  Rxf5 {[%clk 0:00:19]} 30. Qxf5 {[%clk 0:01:08]}  Qf7 {[%clk 0:00:20]} 31. e4 {[%clk 0:00:50]}  Qxf5 {[%clk 0:00:18]} 32. exf5 {[%clk 0:00:51]}  Kf6 {[%clk 0:00:17]} 33. e4 {[%clk 0:00:52]}  h5 {[%clk 0:00:15]} 34. Kg2 {[%clk 0:00:49]}  g4 {[%clk 0:00:16]} 35. hxg4 {[%clk 0:00:42]}  hxg4 {[%clk 0:00:17]} 36. Kf2 {[%clk 0:00:43]}  Bd4+ {[%clk 0:00:17]} 37. Ke2 {[%clk 0:00:40]}  Ke5 {[%clk 0:00:18]} 38. b4 {[%clk 0:00:41]}  Kxe4 {[%clk 0:00:12]} 39. bxc5 {[%clk 0:00:40]}  dxc5 {[%clk 0:00:12]} 40. a4 {[%clk 0:00:37]}  Kxf5 {[%clk 0:00:11]} 41. a5 {[%clk 0:00:37]}  Be5 {[%clk 0:00:08]} 42. a6 {[%clk 0:00:38]}  b6 {[%clk 0:00:08]} 43. Kf2 {[%clk 0:00:37]}  Ke4 {[%clk 0:00:08]} 44. Ke2 {[%clk 0:00:38]}  Bxg3 {[%clk 0:00:08]} 45. Kd2 {[%clk 0:00:39]}  Bd6 {[%clk 0:00:08]} 46. Kc2 {[%clk 0:00:39]}  g3 {[%clk 0:00:08]} 47. Kb3 {[%clk 0:00:40]}  Kd4 {[%clk 0:00:09]} 48. Ka4 {[%clk 0:00:41]}  g2 {[%clk 0:00:09]} 49. Kb5 {[%clk 0:00:42]}  g1=Q {[%clk 0:00:09]} 50. Kc6 {[%clk 0:00:43]}  Kxc4 {[%clk 0:00:07]} 51. Kxd6 {[%clk 0:00:44]}  Qd4 {[%clk 0:00:07]} 52. Kc6 {[%clk 0:00:45]}  Qxd5+ {[%clk 0:00:07]} 53. Kc7 {[%clk 0:00:45]}  b5 {[%clk 0:00:08]} 54. Kb8 {[%clk 0:00:46]}  Qd7 {[%clk 0:00:06]} 55. Ka8 {[%clk 0:00:46]}  Qc8+ {[%clk 0:00:07]} 56. Kxa7 {[%clk 0:00:47]}  Qxa6+ {[%clk 0:00:07]} 57. Kxa6 {[%clk 0:00:46]}  b4 {[%clk 0:00:08]} 58. Kb6 {[%clk 0:00:47]}  b3 {[%clk 0:00:09]} 59. Kc6 {[%clk 0:00:48]}  b2 {[%clk 0:00:09]} 60. Kd6 {[%clk 0:00:49]}  b1=Q {[%clk 0:00:10]} 61. Ke6 {[%clk 0:00:50]}  Qe4+ {[%clk 0:00:10]} 62. Kd6 {[%clk 0:00:50]}  Qd5+ {[%clk 0:00:11]} 63. Kc7 {[%clk 0:00:51]}  Kd4 {[%clk 0:00:12]} 64. Kb6 {[%clk 0:00:52]}  c4 {[%clk 0:00:12]} 65. Ka7 {[%clk 0:00:51]}  c3 {[%clk 0:00:13]} 66. Kb6 {[%clk 0:00:52]}  c2 {[%clk 0:00:14]} 67. Ka7 {[%clk 0:00:53]}  Qb3 {[%clk 0:00:14]} 68. Ka6 {[%clk 0:00:53]}  c1=Q {[%clk 0:00:15]} 69. Ka7 {[%clk 0:00:54]}  Qa1# {[%clk 0:00:15]} 0-1


[Site "https://www.chess.com"]

[Event "Titled Tuesday Blitz March 07 Early 2023"]
[White "Fiorito, Joaquin"]
[Black "Lorparizangeneh, Shahin"]
[WhiteFideId "180173"]
[BlackFideId "12521604"]
[WhiteElo "2157"]
[BlackElo "2526"]
[Result "1-0"]
[Round "09"]
[TimeControl "180+2"]
[Date "2023.03.07"]
[WhiteClock "0:00:49"]
[BlackClock "0:00:47"]

1. d4 {[%clk 0:03:00]}  d5 {[%clk 0:02:53]} 2. Nc3 {[%clk 0:03:01]}  Nf6 {[%clk 0:02:53]} 3. Bf4 {[%clk 0:03:01]}  a6 {[%clk 0:02:53]} 4. e3 {[%clk 0:03:01]}  e6 {[%clk 0:02:53]} 5. g4 {[%clk 0:03:01]}  b5 {[%clk 0:02:49]} 6. g5 {[%clk 0:02:58]}  Nfd7 {[%clk 0:02:46]} 7. Nf3 {[%clk 0:02:58]}  c5 {[%clk 0:02:46]} 8. h4 {[%clk 0:02:56]}  Bb7 {[%clk 0:02:45]} 9. Bg2 {[%clk 0:02:55]}  Nc6 {[%clk 0:02:44]} 10. e4 {[%clk 0:02:53]}  cxd4 {[%clk 0:02:42]} 11. Nxd4 {[%clk 0:02:53]}  Nxd4 {[%clk 0:02:41]} 12. Qxd4 {[%clk 0:02:54]}  b4 {[%clk 0:02:37]} 13. Na4 {[%clk 0:02:12]}  Qa5 {[%clk 0:02:34]} 14. b3 {[%clk 0:02:07]}  dxe4 {[%clk 0:02:17]} 15. O-O-O {[%clk 0:01:46]}  Rd8 {[%clk 0:02:12]} 16. Bxe4 {[%clk 0:01:26]}  e5 {[%clk 0:01:58]} 17. Qd3 {[%clk 0:01:22]}  Bxe4 {[%clk 0:01:41]} 18. Qxe4 {[%clk 0:01:23]}  Be7 {[%clk 0:01:42]} 19. Rd5 {[%clk 0:01:17]}  Qc7 {[%clk 0:01:37]} 20. Bxe5 {[%clk 0:01:15]}  Nxe5 {[%clk 0:01:29]} 21. Rxe5 {[%clk 0:01:16]}  f6 {[%clk 0:01:03]} 22. gxf6 {[%clk 0:01:14]}  gxf6 {[%clk 0:01:04]} 23. Re6 {[%clk 0:00:53]}  Kf7 {[%clk 0:01:04]} 24. Re1 {[%clk 0:00:52]}  Rd7 {[%clk 0:01:04]} 25. Nb6 {[%clk 0:00:50]}  Rhd8 {[%clk 0:00:47]} 26. Qxh7+ {[%clk 0:00:49]} 1-0


[Site "https://www.chess.com"]

[Event "Titled Tuesday Blitz March 07 Early 2023"]
[White "Crevatin, Leo"]
[Black "Orozbaev, Eldiar"]
[WhiteFideId "1726307"]
[BlackFideId "13802240"]
[WhiteElo "2190"]
[BlackElo "2201"]
[Result "0-1"]
[Round "09"]
[TimeControl "180+2"]
[Date "2023.03.07"]
[WhiteClock "0:00:05"]
[BlackClock "0:00:50"]

1. d4 {[%clk 0:03:00]}  Nf6 {[%clk 0:02:58]} 2. c4 {[%clk 0:03:00]}  e6 {[%clk 0:02:57]} 3. Nc3 {[%clk 0:03:00]}  d5 {[%clk 0:02:58]} 4. cxd5 {[%clk 0:03:00]}  exd5 {[%clk 0:02:58]} 5. Bg5 {[%clk 0:03:00]}  c6 {[%clk 0:02:59]} 6. e3 {[%clk 0:03:00]}  Be7 {[%clk 0:02:59]} 7. Bd3 {[%clk 0:03:00]}  O-O {[%clk 0:03:00]} 8. Nge2 {[%clk 0:03:00]}  b6 {[%clk 0:02:58]} 9. O-O {[%clk 0:02:59]}  Na6 {[%clk 0:02:57]} 10. f3 {[%clk 0:02:56]}  Bb7 {[%clk 0:02:57]} 11. Kh1 {[%clk 0:02:53]}  h6 {[%clk 0:02:54]} 12. Bh4 {[%clk 0:02:53]}  Re8 {[%clk 0:02:50]} 13. e4 {[%clk 0:02:51]}  dxe4 {[%clk 0:02:50]} 14. fxe4 {[%clk 0:02:51]}  Ng4 {[%clk 0:02:50]} 15. Qb3 {[%clk 0:02:41]}  Bxh4 {[%clk 0:02:19]} 16. Qxf7+ {[%clk 0:02:41]}  Kh8 {[%clk 0:02:20]} 17. Qxb7 {[%clk 0:02:41]}  Nc5 {[%clk 0:02:21]} 18. dxc5 {[%clk 0:02:37]}  Qxd3 {[%clk 0:02:22]} 19. cxb6 {[%clk 0:01:50]}  Nf2+ {[%clk 0:02:21]} 20. Rxf2 {[%clk 0:01:47]}  Bxf2 {[%clk 0:02:22]} 21. bxa7 {[%clk 0:01:45]}  Bxa7 {[%clk 0:02:16]} 22. Qxc6 {[%clk 0:01:45]}  Rad8 {[%clk 0:02:10]} 23. h3 {[%clk 0:01:41]}  Bb8 {[%clk 0:02:08]} 24. a4 {[%clk 0:01:29]}  Rf8 {[%clk 0:02:08]} 25. a5 {[%clk 0:01:20]}  Rd6 {[%clk 0:02:03]} 26. Qb5 {[%clk 0:01:15]}  Qe3 {[%clk 0:02:01]} 27. a6 {[%clk 0:01:06]}  Rdf6 {[%clk 0:02:01]} 28. Rg1 {[%clk 0:00:51]}  Rf1 {[%clk 0:02:00]} 29. Qb4 {[%clk 0:00:20]}  Rxg1+ {[%clk 0:01:12]} 30. Nxg1 {[%clk 0:00:21]}  Rd8 {[%clk 0:01:12]} 31. Nd5 {[%clk 0:00:14]}  Qg3 {[%clk 0:01:01]} 32. Nf3 {[%clk 0:00:14]}  Rc8 {[%clk 0:01:02]} 33. Qd2 {[%clk 0:00:11]}  Ba7 {[%clk 0:00:56]} 34. b4 {[%clk 0:00:10]}  Rf8 {[%clk 0:00:48]} 35. Qe2 {[%clk 0:00:07]}  Rxf3 {[%clk 0:00:48]} 36. Qxf3 {[%clk 0:00:05]}  Qe1+ {[%clk 0:00:49]} 37. Kh2 {[%clk 0:00:05]}  Bg1+ {[%clk 0:00:49]} 38. Kh1 {[%clk 0:00:05]}  Bf2+ {[%clk 0:00:50]} 0-1


[Site "https://www.chess.com"]

[Event "Titled Tuesday Blitz March 07 Early 2023"]
[White "Krstulovic, Alex"]
[Black "Cherniaiev, Tykhon"]
[WhiteFideId "760056"]
[BlackFideId "14182360"]
[WhiteElo "2311"]
[BlackElo "2450"]
[Result "1/2-1/2"]
[Round "09"]
[TimeControl "180+2"]
[Date "2023.03.07"]
[WhiteClock "0:00:10"]
[BlackClock "0:00:03"]

1. Nf3 {[%clk 0:03:00]}  Nf6 {[%clk 0:02:59]} 2. g3 {[%clk 0:02:59]}  g6 {[%clk 0:02:59]} 3. Bg2 {[%clk 0:03:00]}  Bg7 {[%clk 0:02:59]} 4. O-O {[%clk 0:03:01]}  O-O {[%clk 0:03:00]} 5. c4 {[%clk 0:03:01]}  c5 {[%clk 0:03:00]} 6. Nc3 {[%clk 0:03:00]}  Nc6 {[%clk 0:03:01]} 7. b3 {[%clk 0:03:00]}  d5 {[%clk 0:03:00]} 8. cxd5 {[%clk 0:03:01]}  Nxd5 {[%clk 0:03:01]} 9. Bb2 {[%clk 0:03:01]}  Bg4 {[%clk 0:02:58]} 10. Qc1 {[%clk 0:02:56]}  Nxc3 {[%clk 0:02:57]} 11. dxc3 {[%clk 0:02:55]}  Qc7 {[%clk 0:02:56]} 12. h3 {[%clk 0:02:53]}  Bxf3 {[%clk 0:02:56]} 13. Bxf3 {[%clk 0:02:54]}  Rad8 {[%clk 0:02:56]} 14. Rd1 {[%clk 0:02:53]}  Rxd1+ {[%clk 0:02:55]} 15. Qxd1 {[%clk 0:02:54]}  Rd8 {[%clk 0:02:55]} 16. Qc2 {[%clk 0:02:55]}  e6 {[%clk 0:02:30]} 17. Rd1 {[%clk 0:02:54]}  Rxd1+ {[%clk 0:02:22]} 18. Qxd1 {[%clk 0:02:55]}  h5 {[%clk 0:02:22]} 19. h4 {[%clk 0:02:55]}  Ne5 {[%clk 0:02:16]} 20. Bg2 {[%clk 0:02:53]}  Ng4 {[%clk 0:02:15]} 21. Qd3 {[%clk 0:02:50]}  a6 {[%clk 0:02:11]} 22. a4 {[%clk 0:02:49]}  Qb6 {[%clk 0:02:02]} 23. Qc2 {[%clk 0:02:44]}  c4 {[%clk 0:01:58]} 24. e3 {[%clk 0:02:39]}  cxb3 {[%clk 0:01:53]} 25. Qe4 {[%clk 0:02:39]}  Qd6 {[%clk 0:01:34]} 26. f3 {[%clk 0:00:44]}  Qd2 {[%clk 0:00:37]} 27. fxg4 {[%clk 0:00:21]}  Qxb2 {[%clk 0:00:36]} 28. Qxb7 {[%clk 0:00:13]}  Qc1+ {[%clk 0:00:19]} 29. Kf2 {[%clk 0:00:13]}  Qd2+ {[%clk 0:00:16]} 30. Kf1 {[%clk 0:00:12]}  b2 {[%clk 0:00:08]} 31. Be4 {[%clk 0:00:12]}  hxg4 {[%clk 0:00:09]} 32. h5 {[%clk 0:00:07]}  Qd1+ {[%clk 0:00:05]} 33. Kf2 {[%clk 0:00:07]}  Qd2+ {[%clk 0:00:06]} 34. Kf1 {[%clk 0:00:08]}  gxh5 {[%clk 0:00:04]} 35. Qb8+ {[%clk 0:00:08]}  Bf8 {[%clk 0:00:05]} 36. Qf4 {[%clk 0:00:07]}  Qd1+ {[%clk 0:00:02]} 37. Kf2 {[%clk 0:00:07]}  Qd2+ {[%clk 0:00:03]} 38. Kf1 {[%clk 0:00:07]}  Qc1+ {[%clk 0:00:02]} 39. Kf2 {[%clk 0:00:07]}  b1=Q {[%clk 0:00:03]} 40. Qg5+ {[%clk 0:00:08]}  Bg7 {[%clk 0:00:03]} 41. Qd8+ {[%clk 0:00:08]}  Bf8 {[%clk 0:00:03]} 42. Qg5+ {[%clk 0:00:09]}  Bg7 {[%clk 0:00:03]} 43. Qd8+ {[%clk 0:00:09]}  Bf8 {[%clk 0:00:03]} 44. Qg5+ {[%clk 0:00:10]} 1/2-1/2


[Site "https://www.chess.com"]

[Event "Titled Tuesday Blitz March 07 Early 2023"]
[White "Aradhya, Garg"]
[Black "Gontcharov, Vladislav"]
[WhiteFideId "25006746"]
[BlackFideId "4123492"]
[WhiteElo "2263"]
[BlackElo "2470"]
[Result "1-0"]
[Round "09"]
[TimeControl "180+2"]
[Date "2023.03.07"]
[WhiteClock "0:00:13"]
[BlackClock "0:00:01"]

1. d4 {[%clk 0:03:00]}  Nf6 {[%clk 0:01:39]} 2. c4 {[%clk 0:03:00]}  e6 {[%clk 0:01:39]} 3. Nf3 {[%clk 0:03:00]}  Bb4+ {[%clk 0:01:38]} 4. Nbd2 {[%clk 0:03:00]}  b6 {[%clk 0:01:36]} 5. e3 {[%clk 0:02:58]}  Bb7 {[%clk 0:01:36]} 6. Bd3 {[%clk 0:02:58]}  O-O {[%clk 0:01:34]} 7. O-O {[%clk 0:02:58]}  d5 {[%clk 0:01:34]} 8. b3 {[%clk 0:02:57]}  Ne4 {[%clk 0:01:27]} 9. Bb2 {[%clk 0:02:56]}  Nxd2 {[%clk 0:01:24]} 10. Nxd2 {[%clk 0:02:55]}  dxc4 {[%clk 0:01:24]} 11. Nxc4 {[%clk 0:02:55]}  Qg5 {[%clk 0:01:23]} 12. e4 {[%clk 0:02:54]}  Nd7 {[%clk 0:01:17]} 13. Qf3 {[%clk 0:02:49]}  Nf6 {[%clk 0:01:13]} 14. Rad1 {[%clk 0:02:28]}  Bd6 {[%clk 0:00:59]} 15. Rfe1 {[%clk 0:02:07]}  Bb4 {[%clk 0:00:57]} 16. Re2 {[%clk 0:02:07]}  Rad8 {[%clk 0:00:55]} 17. h3 {[%clk 0:01:53]}  b5 {[%clk 0:00:48]} 18. Ne5 {[%clk 0:01:33]}  c5 {[%clk 0:00:48]} 19. a3 {[%clk 0:01:33]}  cxd4 {[%clk 0:00:43]} 20. Nxf7 {[%clk 0:01:24]}  Rxf7 {[%clk 0:00:41]} 21. axb4 {[%clk 0:01:25]}  e5 {[%clk 0:00:37]} 22. Qf5 {[%clk 0:01:15]}  Qxf5 {[%clk 0:00:34]} 23. exf5 {[%clk 0:01:15]}  e4 {[%clk 0:00:30]} 24. Bxb5 {[%clk 0:01:16]}  d3 {[%clk 0:00:29]} 25. Bc4 {[%clk 0:01:15]}  Bd5 {[%clk 0:00:26]} 26. Bxd5 {[%clk 0:01:14]}  Rxd5 {[%clk 0:00:19]} 27. Re3 {[%clk 0:01:08]}  Rb7 {[%clk 0:00:17]} 28. Bxf6 {[%clk 0:01:06]}  gxf6 {[%clk 0:00:16]} 29. Rxe4 {[%clk 0:01:06]}  Rxf5 {[%clk 0:00:17]} 30. Rxd3 {[%clk 0:01:06]}  Rfb5 {[%clk 0:00:17]} 31. Rdd4 {[%clk 0:01:00]}  a5 {[%clk 0:00:17]} 32. bxa5 {[%clk 0:01:00]}  Rxa5 {[%clk 0:00:18]} 33. b4 {[%clk 0:00:58]}  Ra1+ {[%clk 0:00:17]} 34. Kh2 {[%clk 0:00:59]}  Rb1 {[%clk 0:00:18]} 35. g4 {[%clk 0:00:56]}  Rb3 {[%clk 0:00:18]} 36. Kg2 {[%clk 0:00:52]}  Kg7 {[%clk 0:00:16]} 37. Rf4 {[%clk 0:00:49]}  Rb6 {[%clk 0:00:16]} 38. h4 {[%clk 0:00:47]}  h5 {[%clk 0:00:15]} 39. gxh5 {[%clk 0:00:43]}  Kh6 {[%clk 0:00:15]} 40. f3 {[%clk 0:00:40]}  Rc6 {[%clk 0:00:14]} 41. Rd5 {[%clk 0:00:36]}  Rb1 {[%clk 0:00:12]} 42. Rg4 {[%clk 0:00:33]}  Rcc1 {[%clk 0:00:04]} 43. Rg6+ {[%clk 0:00:31]}  Kh7 {[%clk 0:00:04]} 44. Rd7+ {[%clk 0:00:31]}  Kh8 {[%clk 0:00:04]} 45. Rxf6 {[%clk 0:00:29]}  Rb2+ {[%clk 0:00:04]} 46. Kg3 {[%clk 0:00:19]}  Rg1+ {[%clk 0:00:04]} 47. Kh3 {[%clk 0:00:20]}  Rh1+ {[%clk 0:00:04]} 48. Kg3 {[%clk 0:00:20]}  Rg1+ {[%clk 0:00:04]} 49. Kf4 {[%clk 0:00:20]}  Rxb4+ {[%clk 0:00:04]} 50. Kf5 {[%clk 0:00:20]}  Rb5+ {[%clk 0:00:04]} 51. Kf4 {[%clk 0:00:19]}  Rb4+ {[%clk 0:00:04]} 52. Ke5 {[%clk 0:00:20]}  Rxh4 {[%clk 0:00:04]} 53. Rf8+ {[%clk 0:00:17]}  Rg8 {[%clk 0:00:03]} 54. Rxg8+ {[%clk 0:00:14]}  Kxg8 {[%clk 0:00:03]} 55. Kf5 {[%clk 0:00:14]}  Kf8 {[%clk 0:00:01]} 56. Kg6 {[%clk 0:00:13]}  Rh1 {[%clk 0:00:01]} 57. Rd8+ {[%clk 0:00:13]} 1-0


[Site "https://www.chess.com"]

[Event "Titled Tuesday Blitz March 07 Early 2023"]
[White "Derjabin, Ilja"]
[Black "Klabis, Rokas"]
[WhiteFideId "14104768"]
[BlackFideId "12805246"]
[WhiteElo "2309"]
[BlackElo "2288"]
[Result "1-0"]
[Round "09"]
[TimeControl "180+2"]
[Date "2023.03.07"]
[WhiteClock "0:00:08"]
[BlackClock "0:01:34"]

1. d4 {[%clk 0:03:00]}  Nf6 {[%clk 0:02:57]} 2. c4 {[%clk 0:03:00]}  e6 {[%clk 0:02:55]} 3. Nc3 {[%clk 0:03:00]}  Bb4 {[%clk 0:02:54]} 4. a3 {[%clk 0:03:00]}  Bxc3+ {[%clk 0:02:54]} 5. bxc3 {[%clk 0:03:01]}  d6 {[%clk 0:02:55]} 6. f3 {[%clk 0:03:02]}  O-O {[%clk 0:02:55]} 7. e4 {[%clk 0:03:02]}  e5 {[%clk 0:02:55]} 8. Bd3 {[%clk 0:03:02]}  Nbd7 {[%clk 0:02:55]} 9. Ne2 {[%clk 0:03:02]}  b6 {[%clk 0:02:55]} 10. O-O {[%clk 0:03:03]}  a5 {[%clk 0:02:56]} 11. g4 {[%clk 0:03:00]}  Qe7 {[%clk 0:02:55]} 12. Ng3 {[%clk 0:02:57]}  Ba6 {[%clk 0:02:51]} 13. g5 {[%clk 0:02:36]}  Ne8 {[%clk 0:02:51]} 14. Nf5 {[%clk 0:02:33]}  Qd8 {[%clk 0:02:49]} 15. Ra2 {[%clk 0:02:33]}  g6 {[%clk 0:02:38]} 16. Nh6+ {[%clk 0:02:28]}  Kh8 {[%clk 0:02:38]} 17. f4 {[%clk 0:02:20]}  Qe7 {[%clk 0:02:37]} 18. f5 {[%clk 0:02:13]}  c6 {[%clk 0:02:24]} 19. h4 {[%clk 0:02:06]}  Nc7 {[%clk 0:02:23]} 20. h5 {[%clk 0:01:57]}  b5 {[%clk 0:02:22]} 21. Rh2 {[%clk 0:01:48]}  bxc4 {[%clk 0:02:17]} 22. Bc2 {[%clk 0:01:41]}  exd4 {[%clk 0:02:14]} 23. cxd4 {[%clk 0:01:21]}  c3 {[%clk 0:02:13]} 24. Rf3 {[%clk 0:01:20]}  c5 {[%clk 0:02:11]} 25. Ng4 {[%clk 0:01:13]}  gxf5 {[%clk 0:02:09]} 26. exf5 {[%clk 0:01:06]}  cxd4 {[%clk 0:02:07]} 27. Qxd4+ {[%clk 0:01:05]}  Ne5 {[%clk 0:02:07]} 28. g6 {[%clk 0:01:00]}  Nb5 {[%clk 0:02:05]} 29. g7+ {[%clk 0:00:53]}  Kg8 {[%clk 0:01:57]} 30. f6 {[%clk 0:00:28]}  Nxg4 {[%clk 0:01:48]} 31. Qxg4 {[%clk 0:00:23]}  Qe1+ {[%clk 0:01:37]} 32. Rf1 {[%clk 0:00:21]}  Rfe8 {[%clk 0:01:34]} 33. Bxh7+ {[%clk 0:00:11]}  Kxh7 {[%clk 0:01:33]} 34. Rxe1 {[%clk 0:00:11]}  Kg8 {[%clk 0:01:33]} 35. Rxe8+ {[%clk 0:00:09]}  Rxe8 {[%clk 0:01:34]} 36. h6 {[%clk 0:00:08]} 1-0


[Site "https://www.chess.com"]

[Event "Titled Tuesday Blitz March 07 Early 2023"]
[White "Garakov, Mikhael"]
[Black "Bolourchifard, Farzad"]
[WhiteFideId "4169034"]
[BlackFideId "12510084"]
[WhiteElo "2347"]
[BlackElo "2317"]
[Result "0-1"]
[Round "09"]
[TimeControl "180+2"]
[Date "2023.03.07"]
[WhiteClock "0:00:24"]
[BlackClock "0:00:20"]

1. e4 {[%clk 0:03:00]}  e5 {[%clk 0:02:59]} 2. Nf3 {[%clk 0:03:00]}  Nc6 {[%clk 0:03:00]} 3. Bb5 {[%clk 0:03:00]}  a6 {[%clk 0:03:00]} 4. Bxc6 {[%clk 0:02:59]}  dxc6 {[%clk 0:03:00]} 5. O-O {[%clk 0:02:59]}  f6 {[%clk 0:03:00]} 6. d4 {[%clk 0:02:58]}  exd4 {[%clk 0:02:59]} 7. Nxd4 {[%clk 0:02:58]}  c5 {[%clk 0:02:59]} 8. Nb3 {[%clk 0:02:58]}  Qxd1 {[%clk 0:02:59]} 9. Rxd1 {[%clk 0:02:59]}  Bd7 {[%clk 0:02:57]} 10. Nc3 {[%clk 0:02:59]}  O-O-O {[%clk 0:02:53]} 11. Bf4 {[%clk 0:02:59]}  Be6 {[%clk 0:02:26]} 12. Rxd8+ {[%clk 0:02:57]}  Kxd8 {[%clk 0:02:27]} 13. Rd1+ {[%clk 0:02:57]}  Kc8 {[%clk 0:02:27]} 14. Nd5 {[%clk 0:02:56]}  Bxd5 {[%clk 0:02:26]} 15. Rxd5 {[%clk 0:02:56]}  b6 {[%clk 0:02:22]} 16. Nd2 {[%clk 0:02:46]}  Ne7 {[%clk 0:02:22]} 17. Rd3 {[%clk 0:02:46]}  Ng6 {[%clk 0:02:16]} 18. Bg3 {[%clk 0:02:45]}  Be7 {[%clk 0:02:13]} 19. Nc4 {[%clk 0:02:32]}  Re8 {[%clk 0:02:11]} 20. Ne3 {[%clk 0:02:24]}  Nf8 {[%clk 0:01:37]} 21. Nf5 {[%clk 0:02:10]}  Ne6 {[%clk 0:01:36]} 22. Kf1 {[%clk 0:01:52]}  c4 {[%clk 0:01:20]} 23. Nxe7+ {[%clk 0:01:50]}  Rxe7 {[%clk 0:01:20]} 24. Rd1 {[%clk 0:01:51]}  Nc5 {[%clk 0:01:11]} 25. f3 {[%clk 0:01:51]}  Na4 {[%clk 0:01:12]} 26. Rb1 {[%clk 0:01:49]}  Rd7 {[%clk 0:01:11]} 27. Ke2 {[%clk 0:01:49]}  c3 {[%clk 0:01:10]} 28. b3 {[%clk 0:01:45]}  Rd2+ {[%clk 0:01:11]} 29. Kf1 {[%clk 0:01:40]}  Nb2 {[%clk 0:00:46]} 30. Rc1 {[%clk 0:01:39]}  b5 {[%clk 0:00:46]} 31. Be1 {[%clk 0:01:32]}  b4 {[%clk 0:00:46]} 32. h4 {[%clk 0:01:11]}  Kd7 {[%clk 0:00:45]} 33. h5 {[%clk 0:01:11]}  g6 {[%clk 0:00:44]} 34. h6 {[%clk 0:01:09]}  f5 {[%clk 0:00:41]} 35. exf5 {[%clk 0:01:07]}  gxf5 {[%clk 0:00:41]} 36. Bh4 {[%clk 0:01:06]}  Ke6 {[%clk 0:00:31]} 37. Bg5 {[%clk 0:00:59]}  c5 {[%clk 0:00:24]} 38. Be3 {[%clk 0:00:58]}  Kd5 {[%clk 0:00:24]} 39. g4 {[%clk 0:00:56]}  fxg4 {[%clk 0:00:23]} 40. fxg4 {[%clk 0:00:56]}  Ke4 {[%clk 0:00:23]} 41. Bxc5 {[%clk 0:00:56]}  Kf3 {[%clk 0:00:22]} 42. Bxb4 {[%clk 0:00:55]}  Nd1 {[%clk 0:00:22]} 43. Ke1 {[%clk 0:00:53]}  Rh2 {[%clk 0:00:19]} 44. Bxc3 {[%clk 0:00:26]}  Nxc3 {[%clk 0:00:20]} 45. g5 {[%clk 0:00:24]}  Ne4 {[%clk 0:00:20]} 0-1


[Site "https://www.chess.com"]